fUST/lending_fUST_20241127
["ID","MTS","AMOUNT","RATE_DAILY","PERIOD"]
[343497433,1732674640859,-546.61880069,0.00029663,2]
[343497434,1732674640868,-644.30829572,0.00029663,2]
[343497435,1732674640879,-500.0,0.00029663,2]
[343497436,1732674640888,-500.0,0.00029663,2]
[343497437,1732674640897,-500.0,0.00029663,2]
[343497438,1732674640908,-500.0,0.00029663,2]
[343497439,1732674640920,-475.90471236,0.00029663,2]
[343497440,1732674640930,-500.0,0.00029663,2]
[343497441,1732674640939,-410.92525549,0.00029663,2]
[343497442,1732674640949,-500.0,0.00029663,2]
[343497443,1732674640958,-500.0,0.00029663,2]
[343497444,1732674640967,-279.40799337,0.00029663,2]
[343497445,1732674640977,-9077.45629141,0.00029664,2]
[343497446,1732674640986,-500.0,0.0002978,3]
[343497447,1732674640996,-880.17,0.0002978,3]
[343497448,1732674641005,-544.23,0.0002978,3]
[343497449,1732674641017,-1013.81,0.000298,2]
[343497450,1732674641030,-206.0,0.0003,2]
[343497451,1732674641041,-232.953,0.0003,2]
[343497452,1732674641051,-182.75844733,0.0003,30]
[343497453,1732674641062,-251.0,0.0003,2]
[343497454,1732674641073,-500.0,0.00030101,3]
[343497455,1732674641084,-880.17,0.00030101,3]
[343497456,1732674641093,-544.23,0.00030101,3]
[343497457,1732674641104,-2153.39132609,0.00030106,2]
[343497458,1732674641114,-9077.45629141,0.00030113,2]
[343497459,1732674641126,-246.302601,0.00030137,120]
[343497460,1732674641137,-587.0,0.00030248,2]
[343497461,1732674641147,-9077.45629143,0.00030308,2]
[343497462,1732674641157,-206.0,0.00030411,2]
[343497463,1732674641169,-500.0,0.00030578,3]
[343497464,1732674641180,-880.17,0.00030578,3]
[343497465,1732674641190,-544.23,0.00030578,3]
[343497466,1732674641200,-17906.98924282,0.00030579,2]
[343497467,1732674641210,-5023.83310755,0.00030579,2]
[343497468,1732674641220,-500.0,0.00030676,3]
[343497469,1732674641230,-880.17,0.00030676,3]
[343497470,1732674641240,-544.23,0.00030676,3]
[343497471,1732674641250,-936.54118983,0.00030785,2]
[343497472,1732674641261,-2153.39132609,0.00030785,2]
[343497473,1732674641271,-510.18104281,0.00030873,5]
[343497474,1732674641281,-500.0,0.00030873,5]
[343497475,1732674641290,-1014.80419176,0.00030878,2]
[343497476,1732674641300,-500.0,0.00030879,3]
[343497477,1732674641310,-880.17,0.00030879,3]
[343497478,1732674641319,-544.23,0.00030879,3]
[343497479,1732674641329,-500.0,0.00030881,10]
[343497480,1732674641339,-500.0,0.00030882,3]
[343497481,1732674641349,-880.17,0.00030882,3]
[343497482,1732674641359,-544.23,0.00030882,3]
[343497483,1732674641369,-475.00000095,0.00030884,3]
[343497484,1732674641379,-880.17,0.00030884,3]
[343497485,1732674641389,-880.17,0.00030884,3]
[343497486,1732674641398,-880.17,0.00030884,3]
[343497487,1732674641406,-880.17,0.00030884,3]
[343497488,1732674641416,-880.17,0.00030884,3]
[343497489,1732674641426,-880.17,0.00030884,3]
[343497490,1732674641436,-205.36527705,0.00030884,3]
[343497504,1732674643291,-23354.9161916,0.00030479,2]
[343497505,1732674643303,-1667.36654273,0.00030479,2]
[343497506,1732674643315,-43816.33011973,0.00030479,2]
[343497509,1732674646389,160.643014,0.00013973,2]
[343497834,1732675223135,207.7883466,0.0002968,120]
[343497836,1732675347582,160.531524,0.00013973,2]
[343497902,1732675627150,-160.531524,0.00022174,2]
[343497903,1732675627174,-239.5796844,0.00025735,2]
[343497904,1732675627200,-169.390538,0.0002596,2]
[343497905,1732675627222,-1308.1377909,0.00026057,2]
[343497906,1732675627244,-384.298479,0.00026148,2]
[343497907,1732675627265,-561.625971,0.00026321,2]
[343497908,1732675627287,-174.0,0.00027,2]
[343497909,1732675627309,-561.625971,0.00027006,2]
[343497910,1732675627330,-211.8074,0.00027244,30]
[343497911,1732675627353,-300.0,0.00027411,2]
[343497912,1732675627374,-300.0,0.00027411,2]
[343497913,1732675627396,-2024.45253363,0.00027411,2]
[343497914,1732675650258,-4212.39284785,0.00027411,2]
[343497915,1732675669348,-1000.0,0.00030884,120]
[343497916,1732675669374,-1000.0,0.00030884,120]
[343497917,1732675669400,-1000.0,0.00030884,90]
[343497918,1732675669425,-1000.0,0.00030884,90]
[343497919,1732675669451,-1663.35526279,0.00030884,120]
[343497920,1732675669478,-375.5,0.00030884,90]
[343497921,1732675669508,-375.5,0.00030884,120]
[343497922,1732675669533,-223.39441549,0.00030884,120]
[343497923,1732675669559,-12467.63467642,0.00030884,30]
[343497926,1732675683913,1000000.0,0.00030885,29]
[343497927,1732675695694,1000001.0,0.00030885,29]
[343497928,1732675697907,1000002.0,0.00030885,29]
[343497929,1732675700243,1000003.0,0.00030885,29]
[343497930,1732675703038,1000004.0,0.00030885,29]
[343497931,1732675705873,1000005.0,0.00030885,29]
[343497932,1732675708718,1000006.0,0.00030885,29]
[343497933,1732675711297,1000007.0,0.00030885,29]
[343497934,1732675714871,1000008.0,0.00030885,29]
[343497935,1732675717866,1000009.0,0.00030885,29]
[343497936,1732675721667,1000010.0,0.00030885,29]
[343497937,1732675724566,1000011.0,0.00030885,29]
[343497938,1732675727188,1000012.0,0.00030885,29]
[343497939,1732675729709,1000013.0,0.00030885,29]
[343497940,1732675733696,1000014.0,0.00030885,29]
[343497941,1732675736327,1000015.0,0.00030885,29]
[343497948,1732675737128,1000.0,0.00030885,120]
[343497949,1732675737571,1000.0,0.00030885,120]
[343497950,1732675737969,375.5,0.00030885,120]
[343497951,1732675738945,1000016.0,0.00030885,29]
[343497952,1732675741387,1000017.0,0.00030885,29]
[343497953,1732675744299,1000018.0,0.00030885,29]
[343497954,1732675747767,1000019.0,0.00030885,29]
[343497955,1732675751016,1000020.0,0.00030885,29]
[343497957,1732675753634,1000021.0,0.00030885,29]
[343497967,1732675764719,1000022.0,0.00030885,29]
[343497968,1732675767104,1000023.0,0.00030885,29]
[343497969,1732675769850,1000024.0,0.00030885,29]
[343497970,1732675772796,1000025.0,0.00030885,29]
[343497971,1732675776108,1000026.0,0.00030885,29]
[343497972,1732675778739,1000027.0,0.00030885,29]
[343498035,1732675832587,-181.71658,0.00026316,2]
[343498037,1732675832597,-500.0,0.00027397,3]
[343498039,1732675832608,-500.0,0.00027397,3]
[343498041,1732675832618,-300.0,0.0002741,2]
[343498043,1732675832628,-3646.0,0.00027411,2]
[343498045,1732675832638,-300.0,0.00027411,2]
[343498047,1732675832647,-10247.74322012,0.00027412,2]
[343498048,1732675832660,-1784.29730916,0.00027412,2]
[343498053,1732675838576,-12867.95947072,0.00027412,2]
[343498054,1732675838587,-561.625971,0.00027691,2]
[343498055,1732675838597,-500.0,0.00028027,3]
[343498056,1732675838607,-500.0,0.00028027,3]
[343498057,1732675838616,-500.0,0.00028027,3]
[343498058,1732675838626,-4707.3704742,0.00028028,2]
[343498059,1732675838635,-532.87118803,0.0002853,3]
[343498060,1732675838644,-152.28,0.000295,31]
[343498061,1732675838654,-420.0,0.00029622,2]
[343498062,1732675838664,-912.43,0.000298,2]
[343498063,1732675838673,-815.63505796,0.00029999,2]
[343498064,1732675838683,-500.0,0.00029999,3]
[343498066,1732675838692,-623.0,0.0003,2]
[343498068,1732675838701,-230.0,0.0003,2]
[343498069,1732675838711,-503.33352009,0.00030104,3]
[343498070,1732675838720,-500.0,0.00030104,3]
[343498071,1732675838730,-184.72695,0.00030137,120]
[343498072,1732675838740,-420.0,0.00030151,2]
[343498073,1732675838749,-160.531524,0.00030374,2]
[343498074,1732675838759,-623.0,0.00030411,2]
[343498075,1732675838769,-500.0,0.00030478,3]
[343498076,1732675838779,-500.0,0.00030478,3]
[343498077,1732675838789,-500.0,0.00030478,3]
[343498078,1732675838798,-500.0,0.00030478,3]
[343498079,1732675838808,-500.0,0.00030478,3]
[343498080,1732675838817,-500.0,0.00030478,3]
[343498081,1732675838826,-500.0,0.00030478,3]
[343498082,1732675838836,-500.0,0.00030478,3]
[343498083,1732675838845,-429.98109033,0.00030478,2]
[343498085,1732675838854,-585.72605886,0.00030478,2]
[343498086,1732675838864,-12739.22284481,0.00030479,2]
[343498090,1732675840402,-501.98208771,0.00030479,2]
[343498092,1732675840416,-1906.04345834,0.00030479,2]
[343498100,1732675844636,-23526.65456887,0.00030479,2]
[343498110,1732675996023,160.566809,0.00013973,2]
[343498113,1732676040063,1000.0,0.00030884,120]
[343498114,1732676040824,286.5,0.00030884,120]
[343498137,1732676380570,591.0,0.00030884,29]
[343498138,1732676380929,566.0,0.00030884,29]
[343498139,1732676381238,541.61,0.00030884,29]
[343498140,1732676381561,519.5647,0.00030884,29]
[343498141,1732676381975,497.9,0.00030884,29]
[343498142,1732676382284,476.616514,0.00030884,29]
[343498143,1732676382588,457.320967,0.00030884,29]
[343498144,1732676382899,437.1707,0.00030884,29]
[343498145,1732676383210,419.0,0.00030884,29]
[343498146,1732676403201,1842.57905842,0.00028805,120]
[343498147,1732676449227,804.1,0.00030885,29]
[343498148,1732676456436,737.30524,0.00030885,29]
[343498149,1732676456729,676.097,0.00030885,29]
[343498150,1732676457364,676.0,0.00030885,29]
[343498151,1732676457654,619.486,0.00030885,29]
[343498152,1732676457944,568.109788,0.00030885,29]
[343498153,1732676458643,568.997,0.00030885,29]
[343498154,1732676459162,520.0,0.00030885,29]
[343498155,1732676459725,520.33,0.00030885,29]
[343498156,1732676460030,477.38832,0.00030885,29]
[343498157,1732676466654,1001.26,0.00030885,29]
[343498158,1732676467049,621.904,0.00030885,29]
[343498159,1732676472884,777.0,0.00030885,29]
[343498160,1732676473224,271.073,0.00030885,29]
[343498161,1732676473478,815.5,0.00030885,29]
[343498172,1732676602630,19172.03385499,0.00030915,30]
[343498192,1732676652573,635.59108,0.00030915,29]
[343498193,1732676657445,455.3571,0.00030915,29]
[343498194,1732676677179,160.525979,0.00013973,2]
[343498195,1732676677398,160.525979,0.00021661,2]
[343498197,1732676758684,265.040954,0.00022001,2]
[343498198,1732676781600,270.614156,0.00030915,30]
[343498200,1732676836107,-174.99309045,0.00022759,2]
[343498201,1732676836129,-176.0,0.00027,2]
[343498202,1732676836151,-165.637406,0.00027049,2]
[343498203,1732676836172,-1341.9434,0.00027275,30]
[343498204,1732676836198,-302.21660596,0.00027411,3]
[343498205,1732676836223,-500.0,0.00027411,3]
[343498206,1732676836244,-500.0,0.00027411,3]
[343498207,1732676836267,-925.09388202,0.00028023,2]
[343498208,1732676854103,-1442.90611798,0.00028023,2]
[343498209,1732676854126,-300.0,0.00028024,2]
[343498210,1732676854149,-300.0,0.00028024,2]
[343498211,1732676854173,-510.50239314,0.00028027,3]
[343498212,1732676854199,-500.0,0.00028027,3]
[343498213,1732676854222,-522.99180039,0.00028027,3]
[343498214,1732676854246,-510.76749989,0.00028027,3]
[343498215,1732676854270,-503.29801503,0.00028027,3]
[343498216,1732676854296,-518.58611916,0.00028027,3]
[343498217,1732676854318,-508.34170045,0.00028027,3]
[343498218,1732676854340,-982.14072504,0.00028148,2]
[343498222,1732676934838,1000.0,0.00030911,30]
[343498223,1732676935517,285.5,0.00030911,30]
[343498224,1732676940846,1000.0,0.00030911,60]
[343498225,1732676941404,1000.0,0.00030911,60]
[343498226,1732676941924,375.5,0.00030911,60]
[343498227,1732676946518,1000.0,0.00030911,90]
[343498228,1732676946978,1000.0,0.00030911,90]
[343498229,1732676947423,375.5,0.00030911,90]
[343498230,1732676947929,1000.0,0.00030911,120]
[343498231,1732676948469,1000.0,0.00030911,120]
[343498232,1732676948935,375.5,0.00030911,120]
[343498312,1732677033041,-300.0,0.00025,2]
[343498314,1732677033052,-275.5,0.00025,2]
[343498316,1732677033062,-300.0,0.000258,2]
[343498318,1732677033073,-300.0,0.000268,2]
[343498320,1732677033083,-506.67201338,0.00027411,3]
[343498322,1732677033093,-500.0,0.00027411,3]
[343498324,1732677033104,-500.0,0.00027411,3]
[343498326,1732677033113,-300.0,0.000278,2]
[343498328,1732677033123,-509.55218142,0.00028027,3]
[343498330,1732677033133,-315.06948996,0.00028148,2]
[343498331,1732677033143,-251.44270888,0.00028162,60]
[343498332,1732677033152,-1297.210215,0.00028499,2]
[343498333,1732677033162,-458.52282,0.00028622,2]
[343498334,1732677033173,-300.0,0.000288,2]
[343498335,1732677033183,-1195.12389638,0.00028805,120]
[343498336,1732677033192,-300.0,0.0002885,2]
[343498337,1732677033203,-300.0,0.0002885,2]
[343498338,1732677033213,-1297.210215,0.00028851,2]
[343498339,1732677033222,-275.5,0.000289,2]
[343498340,1732677033232,-220.7456221,0.00029106,2]
[343498341,1732677033245,-1297.210215,0.00029203,2]
[343498342,1732677033256,-160.525979,0.00029349,2]
[343498343,1732677033266,-503.70497497,0.000294,2]
[343498344,1732677033276,-8122.25087984,0.00029469,2]
[343498345,1732677033288,-152.8,0.000295,31]
[343498346,1732677033298,-1297.210215,0.00029555,2]
[343498347,1732677033307,-8122.25087984,0.00029709,2]
[343498348,1732677033317,-5000.0,0.00029753,2]
[343498349,1732677033328,-500.0,0.00029753,3]
[343498350,1732677033340,-1633.69,0.00029753,3]
[343498351,1732677033350,-300.0,0.000298,2]
[343498352,1732677033360,-976.3090189,0.00029885,2]
[343498353,1732677033370,-500.0,0.00029885,120]
[343498355,1732677033380,-500.0,0.00029885,120]
[343498356,1732677033390,-500.0,0.00029885,120]
[343498357,1732677033400,-500.0,0.00029885,120]
[343498358,1732677033409,-500.0,0.00029885,120]
[343498359,1732677033419,-500.0,0.00029885,120]
[343498360,1732677033429,-500.0,0.00029885,120]
[343498361,1732677033439,-500.0,0.00029885,120]
[343498362,1732677033448,-404.06,0.00029885,120]
[343498363,1732677033458,-1048.07,0.000299,2]
[343498364,1732677033470,-300.0,0.000299,2]
[343498365,1732677033481,-3288.42163618,0.0002995,2]
[343498366,1732677033491,-500.0,0.0002995,3]
[343498367,1732677033500,-1633.69,0.0002995,3]
[343498368,1732677033511,-8122.25087984,0.00029951,2]
[343498369,1732677033521,-500.0,0.00029999,3]
[343498370,1732677033530,-589.0,0.0003,2]
[343498371,1732677033541,-151.0,0.0003,120]
[343498372,1732677033550,-151.0,0.0003,120]
[343498373,1732677033561,-4001.56213608,0.0003,30]
[343498374,1732677033570,-230.0,0.0003,2]
[343498375,1732677033580,-152.52653573,0.00030103,3]
[343498376,1732677033590,-310.81143563,0.00030103,3]
[343498377,1732677033602,-4152.304928,0.00030137,120]
[343498378,1732677033612,-404.27529608,0.00030137,60]
[343498379,1732677033622,-8122.25087984,0.00030223,2]
[343498380,1732677033631,-323.5,0.00030379,2]
[343498381,1732677033642,-589.0,0.00030411,2]
[343498382,1732677033652,-500.0,0.00030429,3]
[343498383,1732677033661,-1633.69,0.00030429,3]
[343498384,1732677033671,-150.571,0.0003043,2]
[343498385,1732677033680,-531.0,0.0003043,2]
[343498386,1732677033691,-1111.093,0.0003043,2]
[343498387,1732677033700,-2377.0,0.0003043,2]
[343498388,1732677033711,-151.0,0.0003045,7]
[343498389,1732677033721,-500.0,0.00030477,3]
[343498390,1732677033731,-500.0,0.00030477,3]
[343498391,1732677033742,-616.54651437,0.00030477,3]
[343498392,1732677033751,-500.0,0.00030478,3]
[343498393,1732677033763,-500.0,0.00030478,3]
[343498394,1732677033772,-500.0,0.00030478,3]
[343498395,1732677033782,-517.81823607,0.00030478,3]
[343498396,1732677033792,-507.86992059,0.00030478,2]
[343498397,1732677033802,-500.0,0.0003052,3]
[343498398,1732677033812,-1633.69,0.0003052,3]
[343498399,1732677033822,-555.81912926,0.00030521,3]
[343498400,1732677033832,-500.0,0.00030521,3]
[343498401,1732677033842,-151.0,0.00030664,7]
[343498402,1732677033852,-159.83099471,0.0003076,10]
[343498403,1732677033864,-197.16,0.00030764,3]
[343498404,1732677033874,-870.947141,0.00030773,7]
[343498405,1732677033884,-870.947141,0.00030773,7]
[343498406,1732677033895,-1394.004442,0.00030773,7]
[343498407,1732677033905,-1394.004442,0.00030773,7]
[343498408,1732677033915,-3052.36,0.00030774,10]
[343498409,1732677033926,-3154.11,0.00030774,10]
[343498410,1732677033936,-500.0,0.00030783,3]
[343498411,1732677033946,-500.0,0.00030783,3]
[343498412,1732677033956,-870.947141,0.00030784,7]
[343498413,1732677033966,-870.947141,0.00030784,7]
[343498414,1732677033976,-813.258877,0.00030784,7]
[343498415,1732677033986,-813.258877,0.00030784,7]
[343498416,1732677033997,-151.0,0.00030784,7]
[343498417,1732677034008,-151.0,0.00030784,7]
[343498418,1732677034018,-1921.118028,0.00030784,7]
[343498419,1732677034028,-1921.118028,0.00030784,7]
[343498420,1732677034038,-1394.004442,0.00030784,7]
[343498421,1732677034049,-10594.88692512,0.00030784,2]
[343498422,1732677034059,-582.2,0.00030789,30]
[343498423,1732677034068,-156.983945,0.000308,15]
[343498424,1732677034078,-150.0,0.000308,2]
[343498425,1732677034087,-300.0,0.000308,3]
[343498426,1732677034097,-192.97027819,0.00030811,2]
[343498428,1732677034106,-500.0,0.00030866,3]
[343498429,1732677034116,-1633.69,0.00030866,3]
[343498431,1732677034126,-500.0,0.00030873,5]
[343498432,1732677034136,-157.05,0.00030875,120]
[343498433,1732677034146,-676.53612784,0.00030877,2]
[343498434,1732677034156,-151.0,0.00030879,7]
[343498435,1732677034166,-500.0,0.00030882,3]
[343498436,1732677034176,-500.0,0.00030882,3]
[343498437,1732677034186,-1633.69,0.00030882,3]
[343498438,1732677034196,-1633.69,0.00030882,3]
[343498439,1732677034206,-395.288014,0.00030883,7]
[343498440,1732677034216,-395.288014,0.00030883,7]
[343498442,1732677034226,-395.288014,0.00030883,7]
[343498443,1732677034235,-395.288014,0.00030883,7]
[343498445,1732677034248,-501.57384118,0.00030883,7]
[343498447,1732677034258,-151.0,0.00030883,7]
[343498449,1732677034268,-151.0,0.00030883,7]
[343498450,1732677034279,-870.947141,0.00030883,7]
[343498451,1732677034289,-870.947141,0.00030883,7]
[343498452,1732677034299,-870.947141,0.00030883,7]
[343498453,1732677034309,-870.947141,0.00030883,7]
[343498454,1732677034320,-813.258877,0.00030883,7]
[343498455,1732677034331,-813.258877,0.00030883,7]
[343498456,1732677034340,-813.258877,0.00030883,7]
[343498457,1732677034351,-813.258877,0.00030883,7]
[343498458,1732677034362,-151.0,0.00030883,7]
[343498459,1732677034372,-151.0,0.00030883,7]
[343498460,1732677034382,-500.0,0.00030883,3]
[343498461,1732677034392,-500.0,0.00030883,3]
[343498462,1732677034402,-500.0,0.00030883,3]
[343498463,1732677034413,-508.67064148,0.00030883,3]
[343498464,1732677034422,-500.0,0.00030883,3]
[343498465,1732677034433,-500.0,0.00030883,3]
[343498466,1732677034443,-500.0,0.00030883,3]
[343498467,1732677034453,-500.0,0.00030883,3]
[343498468,1732677034464,-500.0,0.00030883,3]
[343498469,1732677034474,-500.0,0.00030883,3]
[343498470,1732677034483,-500.0,0.00030883,3]
[343498471,1732677034493,-500.0,0.00030883,3]
[343498472,1732677034504,-163.48332549,0.00030883,3]
[343498473,1732677034515,-500.0,0.00030883,3]
[343498474,1732677034525,-500.0,0.00030883,3]
[343498475,1732677034536,-607.23303168,0.00030883,3]
[343498476,1732677034545,-1921.118028,0.00030883,7]
[343498477,1732677034555,-1921.118028,0.00030883,7]
[343498478,1732677034565,-1921.118028,0.00030883,7]
[343498479,1732677034575,-1921.118028,0.00030883,7]
[343498480,1732677034585,-1921.118028,0.00030883,7]
[343498481,1732677034595,-1921.118028,0.00030883,7]
[343498482,1732677034605,-1394.004442,0.00030883,7]
[343498483,1732677034614,-1394.004442,0.00030883,7]
[343498484,1732677034712,-500.0,0.00030884,3]
[343498485,1732677034722,-500.0,0.00030884,3]
[343498486,1732677034732,-500.0,0.00030884,3]
[343498487,1732677034742,-500.0,0.00030884,3]
[343498488,1732677034752,-646.24786503,0.00030884,3]
[343498489,1732677034763,-1633.69,0.00030884,3]
[343498490,1732677034773,-1633.69,0.00030884,3]
[343498491,1732677034782,-1633.69,0.00030884,3]
[343498492,1732677034792,-1633.69,0.00030884,3]
[343498493,1732677034802,-1633.69,0.00030884,3]
[343498494,1732677034812,-1633.69,0.00030884,3]
[343498495,1732677034822,-1633.69,0.00030884,3]
[343498496,1732677034833,-1633.69,0.00030884,3]
[343498497,1732677034844,-1633.69,0.00030884,3]
[343498498,1732677034854,-1633.69,0.00030884,3]
[343498499,1732677034864,-1633.69,0.00030884,3]
[343498500,1732677034874,-1633.69,0.00030884,3]
[343498501,1732677034884,-1633.69,0.00030884,3]
[343498502,1732677034895,-1633.69,0.00030884,3]
[343498503,1732677034906,-1633.69,0.00030884,3]
[343498504,1732677034915,-1633.69,0.00030884,3]
[343498505,1732677034925,-1633.70018425,0.00030884,3]
[343498506,1732677034935,-395.288014,0.00030885,7]
[343498507,1732677034945,-395.288014,0.00030885,7]
[343498508,1732677034955,-395.288014,0.00030885,7]
[343498509,1732677034964,-395.288014,0.00030885,7]
[343498510,1732677034974,-151.0,0.00030885,7]
[343498511,1732677034987,-202.830892,0.00030885,7]
[343498512,1732677034997,-870.947141,0.00030885,7]
[343498513,1732677035008,-870.947141,0.00030885,7]
[343498514,1732677035021,-813.258877,0.00030885,7]
[343498515,1732677035031,-813.258877,0.00030885,7]
[343498516,1732677035041,-151.0,0.00030885,7]
[343498517,1732677035051,-500.0,0.00030885,10]
[343498518,1732677035061,-1921.118028,0.00030885,7]
[343498519,1732677035071,-1921.118028,0.00030885,7]
[343498520,1732677035081,-1394.004442,0.00030885,7]
[343498521,1732677035091,-1394.004442,0.00030885,7]
[343498522,1732677035101,-151.0,0.000309,19]
[343498523,1732677035111,-151.0,0.000309,14]
[343498524,1732677035120,-151.0,0.000309,15]
[343498525,1732677035130,-151.0,0.000309,14]
[343498526,1732677035139,-294.010104,0.000309,15]
[343498527,1732677035149,-616.0,0.000309,2]
[343498528,1732677035159,-308.7851,0.000309,2]
[343498529,1732677035168,-300.0,0.000309,4]
[343498530,1732677035177,-267.36803083,0.0003091,2]
[343498531,1732677035186,-186.9434603,0.0003091,2]
[343498532,1732677035196,-366.94007452,0.0003091,2]
[343498533,1732677035205,-189.31001936,0.0003091,2]
[343498534,1732677035215,-500.0,0.0003091,2]
[343498535,1732677035224,-233.64059755,0.0003091,2]
[343498536,1732677035234,-219.67312067,0.0003091,2]
[343498537,1732677035246,-2562213.42629551,0.00030911,10]
[343498538,1732677035263,-1368.04317884,0.00030911,10]
[343498539,1732677035274,-1825.86731986,0.00030911,10]
[343498540,1732677036344,533.7,0.00030911,29]
[343498547,1732677039060,-3492.39415486,0.00024953,2]
[343498548,1732677039070,-188.0,0.00028027,30]
[343498549,1732677039080,-943.26,0.000299,2]
[343498550,1732677039090,-188.0,0.00029999,30]
[343498551,1732677039100,-188.0,0.00030478,30]
[343498552,1732677039109,-188.0,0.00030478,30]
[343498553,1732677039119,-188.0,0.00030478,30]
[343498554,1732677039128,-115.81106026,0.00030478,30]
[343498561,1732677040917,-312.85429631,0.00028048,2]
[343498562,1732677040927,-72.18893974,0.00030478,30]
[343498563,1732677040936,-188.0,0.00030582,30]
[343498564,1732677040946,-295.74,0.00030764,3]
[343498565,1732677040956,-618.71675895,0.00030784,7]
[343498571,1732677045212,-151.0,0.00030774,7]
[343498572,1732677045223,-568.66596672,0.00030784,7]
[343498573,1732677045342,-206.62171633,0.00030784,7]
[343498574,1732677045354,-535.0,0.00030791,30]
[343498575,1732677045365,-500.0,0.0003081,2]
[343498577,1732677045379,-500.0,0.0003081,2]
[343498578,1732677045391,-286.73371078,0.0003081,2]
[343498579,1732677045402,-500.0,0.0003081,2]
[343498580,1732677045412,-500.0,0.0003081,2]
[343498581,1732677045423,-199.52806969,0.0003081,2]
[343498582,1732677045435,-500.0,0.0003081,2]
[343498583,1732677045447,-500.0,0.0003081,2]
[343498584,1732677045459,-500.0,0.0003081,2]
[343498586,1732677045473,-500.0,0.0003081,2]
[343498588,1732677045484,-500.0,0.0003081,2]
[343498590,1732677045496,-500.0,0.0003081,2]
[343498591,1732677045507,-500.0,0.0003081,2]
[343498592,1732677045520,-193.55668553,0.0003081,2]
[343498593,1732677045531,-500.0,0.0003081,2]
[343498594,1732677045543,-500.0,0.0003081,2]
[343498595,1732677045554,-500.0,0.0003081,2]
[343498596,1732677045566,-500.0,0.0003081,2]
[343498597,1732677045577,-500.0,0.0003081,2]
[343498598,1732677045589,-519.68167101,0.0003081,2]
[343498600,1732677045601,-1394.004442,0.00030883,7]
[343498602,1732677045613,-1394.004442,0.00030883,7]
[343498603,1732677045626,-188.0,0.00030883,30]
[343498604,1732677045637,-151.0,0.00030883,7]
[343498605,1732677045650,-151.0,0.00030883,7]
[343498606,1732677045662,-188.0,0.00030884,30]
[343498607,1732677045673,-188.0,0.00030884,30]
[343498608,1732677045683,-1394.004442,0.00030885,7]
[343498609,1732677045693,-1394.004442,0.00030885,7]
[343498610,1732677045704,-6912.72842845,0.00030911,10]
[343498612,1732677045793,491.09497,0.00030911,29]
[343498616,1732677046260,492.59109,0.00030911,29]
[343498618,1732677046611,473.0,0.00030911,29]
[343498619,1732677046903,452.22533,0.00030911,29]
[343498620,1732677047254,433.911,0.00030911,29]
[343498621,1732677047540,831.3306,0.00030911,29]
[343498622,1732677047837,762.601397,0.00030911,29]
[343498623,1732677048147,698.4,0.00030911,29]
[343498624,1732677048433,640.7968,0.00030911,29]
[343498625,1732677048723,587.79,0.00030911,29]
[343498626,1732677049023,538.05466,0.00030911,29]
[343498627,1732677049322,493.449216,0.00030911,29]
[343498628,1732677049632,452.9,0.00030911,29]
[343498629,1732677050081,1243.9818,0.00030911,29]
[343498630,1732677054624,932.1347,0.00030911,29]
[343498631,1732677054927,699.131301,0.00030911,29]